Cogmind - Beta 13 @@@ ROGUE MODE // 2024.07.05 @ 19:31:13 Player: Herotic Result: Destroyed by G-34 Mercenary with Small Laser Performance ------------- Evolutions (1) 500 Regions Visited (2) 400 Robots Destroyed (12) 60 Value Destroyed (406) 406 Prototype IDs (1) 20 Alien Tech Used (0) 0 Bonus (0) 0 TOTAL SCORE: 1386 Bonus ------- None Cogmind --------- Core Integrity 0/400 Matter 216/300 Energy 99/100 System Corruption 0% Temperature Cool (27) Movement Core (100) Ox1 Location -9/Materials Parts ------- > --- POWER (2) -------- (None) > --- PROPULSION (2) --- (None) > --- UTILITY (3) ------ Small Storage Unit Weapon Shielding > --- WEAPON (2) ------- (None) > --- INVENTORY (8) ---- Heat Sink Large Matter Pod (0) Sensor Array High-powered Tractor Beam Hammer Peak State ------------ > --- POWER ------------ Cooled Ion Engine > --- PROPULSION ------- Light Treads Aluminum Leg > --- UTILITY ---------- Small Storage Unit Weapon Shielding Tractor Beam > --- WEAPON ----------- EM Pulse Gun Hammer > --- INVENTORY -------- Heat Sink Large Matter Pod Sensor Array Weapon Shielding Medium Armor Plating High-powered Tractor Beam Assault Rifle Grenade Launcher [Rating: 11] Favorites ----------- Power Light Ion Engine Engine Light Ion Engine Power Core Light Nuclear Core Propulsion Aluminum Leg Treads Light Treads Leg Aluminum Leg Utility Small Storage Unit Device Tractor Beam Storage Small Storage Unit Protection Weapon Shielding Weapon EM Pulse Gun Energy Gun EM Pulse Gun Ballistic Gun Assault Rifle Launcher Grenade Launcher Impact Weapon Hammer Build | -11 -10 -9 ------- Run | Yrd Mat Mat Slots Evolved 2 | . . 2 Power 1 | . . 1 Propulsion . | . . . Utility 1 | . . 1 Weapon . | . . . Parts Attached 23 | 8 3 12 Power 3 | 1 . 2 Engine 2 | 1 . 1 Core 1 | . . 1 Reactor . | . . . Propulsion 8 | 4 1 3 Treads 3 | 2 1 . Leg 5 | 2 . 3 Wheel . | . . . Hover . | . . . Flight . | . . . Utility 5 | 1 1 3 Device 1 | . 1 . Storage 1 | 1 . . Processor . | . . . Hackware . | . . . Protection 3 | . . 3 Artifact . | . . . Weapon 7 | 2 1 4 Energy Gun 2 | 1 . 1 Energy Cannon . | . . . Ballistic Gun 2 | 1 . 1 Ballistic Cannon . | . . . Launcher 2 | . 1 1 Special Weapon . | . . . Impact Weapon 1 | . . 1 Slashing Weapon . | . . . Piercing Weapon . | . . . Special Melee Weapon . | . . . Unidentified Prototypes 1 | . . 1 Parts Lost 11 | . 1 10 Power 3 | . 1 2 Propulsion 3 | . . 3 Utility 2 | . . 2 Weapon 3 | . . 3 Highest Loss Streak 7 | . 1 7 To Critical Strikes . | . . . Average Slot Usage (%) 75 | . 78 73 Engine 6 | . 10 4 Core 1 | . . 1 Treads 7 | . 7 8 Leg 10 | . 14 8 Device 5 | . 10 2 Storage 12 | . 14 11 Protection 11 | . . 17 Energy Gun 6 | . 7 6 Ballistic Gun 3 | . 1 3 Launcher 4 | . 12 . Impact Weapon 5 | . . 8 Naked Turns . | . . . Heaviest Build 19 | 12 14 19 Greatest Support 40 | 40 20 20 Greatest Overweight (x) 5 | . . 5 Average Overweight (x) . | . . . Largest Inventory Capacity 8 | 8 8 8 Average Capacity 7 | 6 8 8 Most Carried 8 | 5 7 8 Average Carried 5 | 1 4 6 Final Capacity 8 | 8 8 8 Final Carried 7 | 2 7 5 Class Distribution -------------------- 100% | Mutant Dominant Class ---------------- Mutant | -10/Materials Mutant | -9/Materials Resources | -11 -10 -9 ----------- Run | Yrd Mat Mat Matter Collected 440 | 250 49 141 Remotely 34 | . 34 . Salvage Created 338 | . 113 225 Parts 20 | . 12 8 Haulers Intercepted . | . . . Recyclers Shooed . | . . . Parts Field Recycled . | . . . Retrieved Matter . | . . . Parts Self-Destructed . | . . . Prevented . | . . . Kills | -11 -10 -9 ------- Run | Yrd Mat Mat Combat Hostiles Destroyed 9 | . 4 5 Melee 1 | . . 1 Guns 3 | . . 3 AOE 4 | . 4 . Classes Destroyed 3 | . 3 . Builder 1 | . 1 . Watcher 2 | . 2 . Grunt 9 | . 4 5 Best Kill Streak 4 | . 4 3 Combat Bots Only 3 | . 3 3 Max Kills in Single Turn 2 | . 2 1 Gunslinging . | . . . Exploded 2 | . 2 . Melee 1 | . . 1 Uniques/NPCs Destroyed . | . . . Combat | -11 -10 -9 -------- Run | Yrd Mat Mat Hostile Shots Fired 145 | . 18 127 Missed 42 | . 4 38 Damage Taken 1370 | . 219 1151 Core 457 | . 54 403 Absorbed by Shields . | . . . Redirected to Shielding 73 | . . 73 Core Remaining (%) 89 | 100 78 . Volleys Fired 35 | . 11 24 Largest 2 | . 2 1 Hottest 70 | . 70 40 Shots Fired 39 | . 15 24 Gun 30 | . 6 24 Cannon . | . . . Launcher 9 | . 9 . Special . | . . . Kinetic 18 | . . 18 Thermal . | . . . Explosive 9 | . 9 . Electromagnetic 12 | . 6 6 Robot Hit Streak 6 | . 6 5 Robot Miss Streak 3 | . 1 3 Penetration Max . | . . . Secondary Targets . | . . . Shots Hit Robots 26 | . 10 16 Core Hits 17 | . 10 7 Critical Kills . | . . . Critical Parts Destroyed 1 | . . 1 Critical Strikes 1 | . . 1 Smash 1 | . . 1 Melee Attacks 2 | . . 2 Impact 2 | . . 2 Slashing . | . . . Piercing . | . . . Sneak Attacks . | . . . Combat Hostiles . | . . . Follow-up Attacks . | . . . Damage Inflicted 1123 | . 804 319 Guns 225 | . 47 178 Cannons . | . . . Explosions 836 | . 757 79 Melee 62 | . . 62 Ramming . | . . . Kinetic 127 | . . 127 Thermal 235 | . 156 79 Explosive 601 | . 601 . Electromagnetic 98 | . 47 51 Impact 62 | . . 62 Slashing . | . . . Piercing . | . . . Highest Corruption . | . . . Average Corruption . | . . . Corruption Purged . | . . . Corruption Blocked . | . . . Overload Shots . | . . . Overflow Damage 156 | . 99 57 Projectiles . | . . . Explosions 121 | . 99 22 Melee 35 | . . 35 Knockbacks 1 | . . 1 Impact 1 | . . 1 Kinetic . | . . . Secondary . | . . . Self-Inflicted Damage 91 | . 65 26 Shots 3 | . 2 1 Rammed . | . . . Targets Rammed . | . . . Kicked . | . . . Crushed . | . . . Highest Temperature 33 | . 33 26 Average Temperature 10 | . 12 8 Received Heat Transfer 696 | . 84 612 Siege Activations . | . . . Robots Corrupted 1 | . . 1 Combat Hostiles 1 | . . 1 Parts Fried 1 | . . 1 Impact Corruptions 1 | . . 1 Robots Melted . | . . . Combat Hostiles . | . . . Parts Melted . | . . . Heat Transferred 200 | . 100 100 Parts Sabotaged . | . . . Parts Stolen . | . . . Parts Stripped . | . . . Power Chain Reactions 1 | . . 1 Alert | -11 -10 -9 ------- Run | Yrd Mat Mat Peak Influence 240 | . 240 237 Initial 101 | . . 101 Average 104 | . 81 142 Maximum Alert Level 1 | . 1 1 Low Security (%) 87 | 100 85 86 Level 1 12 | . 14 13 Level 2 . | . . . Level 3 . | . . . Level 4 . | . . . Level 5 . | . . . High Security . | . . . Max Security . | . . . Squads Dispatched 4 | . 2 2 Investigation 2 | . 1 1 Extermination . | . . . Reinforcement 2 | . 1 1 Assault . | . . . Garrison . | . . . Intercept . | . . . Searches Triggered . | . . . Construction Impeded . | . . . Haulers Reinforced . | . . . Active Scanning Responses . | . . . Cargo Convoy Interrupts . | . . . Stealth | -11 -10 -9 --------- Run | Yrd Mat Mat Distress Signals 1 | . 1 . Communications Jammed . | . . . Distress Signals . | . . . Times Spotted 20 | . 6 14 Peak Tracking Total 8 | . 3 8 Tactical Retreats 1 | . . 1 Traps | -11 -10 -9 ------- Run | Yrd Mat Mat Traps Triggered 2 | . 1 1 Indirectly . | . . . Trap Hack Attempts . | . . . Triggered . | . . . Disarmed . | . . . Reprogrammed . | . . . Reused . | . . . Traps Extracted . | . . . Installed . | . . . Triggered . | . . . Machines | -11 -10 -9 ---------- Run | Yrd Mat Mat Machines Disabled 5 | . 4 1 Max in Single Turn 3 | . 3 1 Machines Repaired . | . . . Machines Dismantled . | . . . Machines Sabotaged . | . . . Overloaded Fab Kills . | . . . Hacking | -11 -10 -9 --------- Run | Yrd Mat Mat Machines Accessed 4 | . 3 1 Terminals 4 | . 3 1 Fabricators . | . . . Repair Stations . | . . . Recycling Units . | . . . Scanalyzers . | . . . Garrison Access . | . . . Total Hacks 14 | . 9 5 Successful 7 | . 5 2 Failed 7 | . 4 3 Catastrophic 2 | . 1 1 Database Lockouts . | . . . Manual . | . . . Terminals 14 | . 9 5 Fabricators . | . . . Repair Stations . | . . . Recycling Units . | . . . Scanalyzers . | . . . Garrison Access . | . . . Terminal Hacks 7 | . 5 2 Record 1 | . . 1 Alert Level 3 | . 3 . Dispatch Records 1 | . 1 . Zone Layout 2 | . 1 1 Fabricator Hacks . | . . . Repair Station Hacks . | . . . Recycling Unit Hacks . | . . . Scanalyzer . | . . . Garrison Access Hacks . | . . . Unauthorized Hacks . | . . . Terminals . | . . . Fabricators . | . . . Repair Stations . | . . . Recycling Units . | . . . Scanalyzers . | . . . Garrison Access . | . . . Data Cores Recovered . | . . . Used . | . . . Hacking Detections 4 | . 3 1 Full Trace Events 4 | . 3 1 Feedback Events . | . . . Feedback Blocked . | . . . Robot Schematics Acquired . | . . . Robots Built . | . . . Authchips . | . . . Time . | . . . Total Robot Build Rating . | . . . Part Schematics Acquired . | . . . Parts Built . | . . . Authchips . | . . . Time . | . . . Total Part Build Rating . | . . . Parts Repaired . | . . . Time . | . . . Parts Recycled . | . . . Recycled Matter . | . . . Retrieved Matter . | . . . Retrieved Components . | . . . Parts Scanalyzed . | . . . Part Schematics Acquired . | . . . Parts Damaged . | . . . Bothacking | -11 -10 -9 ------------ Run | Yrd Mat Mat Used RIF Installer . | . . . Robots Hacked . | . . . Non-combat . | . . . Combat . | . . . Robot Hacks Applied . | . . . Relay Couplers Released . | . . . Fabnet Peak Effective % . | . . . Robots Rewired . | . . . Allies Hacked . | . . . Hacks Repelled . | . . . Allies | -11 -10 -9 -------- Run | Yrd Mat Mat Total Allies . | . . . Largest Group . | . . . Highest-Rated Group . | . . . Highest-Rated Ally . | . . . Total Orders . | . . . Ally Attacks . | . . . Total Damage . | . . . Kills . | . . . Allies Corrupted . | . . . Allies Melted . | . . . Intel | -11 -10 -9 ------- Run | Yrd Mat Mat Robot Analysis Total . | . . . Derelict Logs Recovered . | . . . Drone Launches . | . . . Drone Recoveries . | . . . Exploration | -11 -10 -9 ------------- Run | Yrd Mat Mat Turns Passed 564 | 73 182 309 Spaces Moved 296 | 47 106 143 Core 34 | 8 . 26 Treads 90 | 12 49 29 Legs 172 | 27 57 88 Wheels . | . . . Hover . | . . . Flight . | . . . Fastest Speed 50 | 50 120 100 Average Speed 147 | 118 138 164 Slowest Speed 300 | 160 160 300 Overloaded Moves . | . . . Propulsion Burnouts . | . . . Robots Hopped . | . . . Cave-ins Triggered . | . . . Exploration Rate (%) 15 | 4 32 9 Regions Visited 2 Branch Regions . Pre-discovered Areas . | . . . Known Exits Taken . | . . . Unknown Exits Taken 2 | 1 1 . Scrap Searched . | . . . Spaces Dug . | . . . Terrain Destroyed 70 | . 66 4 Melee . | . . . Projectile . | . . . AOE 70 | . 66 4 Terrain Rammed . | . . . Walls Destroyed . | . . . Machines Disabled . | . . . Actions | -11 -10 -9 --------- Run | Yrd Mat Mat Total 379 | 65 126 188 Wait . | . . . Move 294 | 46 105 143 Hop . | . . . Pick Up 21 | 9 7 5 Fast Attach 3 | . . 3 Attach 17 | 8 2 7 Detach 1 | 1 . . Swap 3 | . 1 2 Drop 3 | 1 . 2 Fire 35 | . 11 24 Melee 2 | . . 2 Ram . | . . . Kick . | . . . Crush . | . . . Escape Stasis . | . . . Rewire . | . . . Trap . | . . . Miscellaneous . | . . . Route ------- -11/Scrapyard -10/Materials (discovered 2 exits: *Mat / [Min]) -9/Materials History --------- Turn | Location | Event 4 | -11/Scrapyard | Discovered new exit (range 15) 74 | -11/Scrapyard | Entered Materials 196 | -10/Materials | Discovered new exit (range 18) 196 | -10/Materials | Discovered new exit (range 17) 256 | -10/Materials | Entered another Materials area 256 | -9/Materials | Evolved 2 slots: Power x1, Utility x1 338 | -9/Materials | Build established: Mutant 471 | -9/Materials | Lost 3 parts (1p1n1w) 528 | -9/Materials | Core integrity fell below 50% 563 | -9/Materials | Core integrity fell below 20% 565 | -9/Materials | Destroyed by G-34 Mercenary with Small Laser Last Messages --------------- G-34 Mercenary destroyed. Acquired 49 matter. Acquired Aluminum Leg. Dropped Lgt. Treads. Acquired 46 matter. Grenade Launcher destroyed. Weapon Shielding destroyed. Med. Armor Plating destroyed. G-34 Mercenary destroyed. Aluminum Leg destroyed. Triggered EMP Trap. A bubble of electromagnetic force engulfs the area. Chain reaction triggered in Lgt. Nuclear Core. Door malfunctions. Aluminum Leg destroyed. Critical hit (Burn: +37). Assault Rifle destroyed. Critical hit (Burn: +37). U-05 Engineer lays Concrete. Map ----- +----------------------------------------------------+ | ?????????????????????????????????????????????????? | | ?????????????????????????????????????????????????? | | ?????????????????????????????????????????????????? | | ?????????????????????????????????????????????????? | | ?????????????????????????????????????????????????? | | ?????????????????????????????????????????????????? | | ?????????????????????????????????????????????????? | | ?????????????????????????????????????????????????? | | ?????????????????????????????????????????????????? | | ?????????????????????????????????????????????????? | | ?????????????????????????????????????????????????? | | ?????????????????????????????????????????????????? | | ?????????????????????????????????????????????????? | | ?????????????????????????????????????????????????? | | ?????????????????????????????????????????????????? | | ?????????????????????????????????????????????????? | | ?????????????????????????????????????????????????? | | ?????????????????????????????????????????????????? | | ?????????????????????????????????????????????????? | | ??????????????? ???????????????????????????????? | | ??????????????? #??????????????????????????????? | | ??????????????# #??????????????????????????????? | | ??????????????# ###########????????????????????? | | ??????????????# ## """ #????????????????????? | | ??????????????# %## "R" #????????????????????? | | ??????????????# ## " "g@b #????????????????????? | | ??????????????# ## gg #????????????????????? | | ??????????????# ## gg #????????????????????? | | ??????????????# ## """ g #????????????????????? | | ??????????????# ## """ #????????????????????? | | ???############ ## """ #????????????????????? | | ???# """"""" ## ## [## ????????????????? | | ???# """"""" # # ###### ""????????????????? | | ???# """"""" # + "T????????????????? | | ???# """""""=+ T # ""????????????????? | | ???# """ %%% # + ????????????????? | | ???# # ##+#+####????????????????? | | ???# ## ####/### ????????????????? | | ???# ## # # """ ????????????????? | | ???####/="""### [ + # """""????????????????? | | ??????#[#####?# %*# # """""????????????????? | | ??????# ####### ! # """ ]# """""????????????????? | | ??????# # """ # """ ????????????????? | | ??????# # """ # ????????????????? | | ?###### """ ######## ????????????????? | | ?# # """ "#??????# ????????????????? | | ?# # """ T#??????# ????????????????? | | ?# # "#??????# ????????????????? | | ?# # #??????########????????????????? | | ?# + #??????????????????????????????? | +----------------------------------------------------+ Best States ------------- Heat Dissipation 28 Energy Generation 14 Energy Capacity 280 Matter Stores 270 Matter Capacity 300 Sight Range 16 Terrain Scan Density 10 Armor Coverage 225 Weapon Shielding 33 Evasion (%) 55 Recoil Reduction 2 Item Schematics ----------------- None Robot Schematics ------------------ None Fabricated ------------ Nothing Alien Tech Used ----------------- None Achievements -------------- Power Corrupts Challenges ------------ None Game ------ Seed IonicArmorBooster Manual? 0 Play Time 00:16:46 Cumulative 1.6 hours Start 2024.07.05 @ 19:12:58 End 2024.07.05 @ 19:31:13 Sessions 1 Manual Loads 0 Difficulty Rogue Special Mode None Game No. 5 Rogue 5 Adventurer 0 Explorer 0 Win Type - Total 0 Types 0/0/0/0/0/0/0/0/0 Lore% 2 Gallery% 4 Achievement% 4 Wizard Run 0 Options --------- Layout 1 ASCII 0 Keyboard 0 Movement Mouse Keybinds 0 Fullscreen 1 Font 32/SmallcapsGlow Map View 50x35 Zoom Use 0% Tactical HUD 0 Map Filters NONE Filters NONE Steam 1 RUN: 2702485d-9538-4dae-a5f6-14f8e0f2873e